[Event "Titled Tuesday Blitz March 07 Early 2023"]
[White "Maze, Sebastien"]
[Black "Jiganchine, Roman"]
[WhiteFideId "613762"]
[BlackFideId "2603667"]
[WhiteElo "2462"]
[BlackElo "2328"]
[Result "1-0"]
[Round "05"]
[TimeControl "180+2"]
[Date "2023.03.07"]
[WhiteClock "0:00:05"]
[BlackClock "0:00:04"]

1. e4 {[%clk 0:02:56]}  c6 {[%clk 0:02:57]} 2. Nf3 {[%clk 0:02:54]}  d5 {[%clk 0:02:57]} 3. Nc3 {[%clk 0:02:54]}  dxe4 {[%clk 0:02:56]} 4. Nxe4 {[%clk 0:02:54]}  Nf6 {[%clk 0:02:57]} 5. Qe2 {[%clk 0:02:50]}  Nxe4 {[%clk 0:02:55]} 6. Qxe4 {[%clk 0:02:50]}  Qd5 {[%clk 0:02:56]} 7. Qe3 {[%clk 0:02:46]}  Bg4 {[%clk 0:02:34]} 8. Be2 {[%clk 0:02:43]}  Qe6 {[%clk 0:02:33]} 9. b3 {[%clk 0:02:39]}  Nd7 {[%clk 0:02:25]} 10. Bb2 {[%clk 0:02:36]}  Qxe3 {[%clk 0:02:24]} 11. fxe3 {[%clk 0:02:31]}  f6 {[%clk 0:02:11]} 12. d4 {[%clk 0:02:25]}  e6 {[%clk 0:02:10]} 13. O-O-O {[%clk 0:02:18]}  a5 {[%clk 0:02:09]} 14. a4 {[%clk 0:02:16]}  Nb6 {[%clk 0:01:59]} 15. e4 {[%clk 0:02:14]}  O-O-O {[%clk 0:01:57]} 16. c4 {[%clk 0:01:37]}  Bb4 {[%clk 0:01:52]} 17. Bd3 {[%clk 0:01:24]}  Rhe8 {[%clk 0:01:47]} 18. h3 {[%clk 0:01:23]}  Bh5 {[%clk 0:01:32]} 19. g4 {[%clk 0:01:22]}  Bg6 {[%clk 0:01:29]} 20. Nh4 {[%clk 0:01:20]}  Bf7 {[%clk 0:01:06]} 21. Rhf1 {[%clk 0:01:19]}  Re7 {[%clk 0:01:03]} 22. Rf3 {[%clk 0:01:11]}  h5 {[%clk 0:00:58]} 23. e5 {[%clk 0:00:54]}  hxg4 {[%clk 0:00:50]} 24. exf6 {[%clk 0:00:36]}  gxf6 {[%clk 0:00:48]} 25. hxg4 {[%clk 0:00:36]}  Rh8 {[%clk 0:00:44]} 26. Ng6 {[%clk 0:00:28]}  Bxg6 {[%clk 0:00:43]} 27. Bxg6 {[%clk 0:00:28]}  Nd7 {[%clk 0:00:34]} 28. d5 {[%clk 0:00:19]}  exd5 {[%clk 0:00:26]} 29. cxd5 {[%clk 0:00:19]}  Rh6 {[%clk 0:00:19]} 30. Bf5 {[%clk 0:00:11]}  Kc7 {[%clk 0:00:18]} 31. dxc6 {[%clk 0:00:11]}  bxc6 {[%clk 0:00:18]} 32. Bxd7 {[%clk 0:00:11]}  Rxd7 {[%clk 0:00:18]} 33. Rxd7+ {[%clk 0:00:11]}  Kxd7 {[%clk 0:00:18]} 34. Bxf6 {[%clk 0:00:11]}  Rh1+ {[%clk 0:00:16]} 35. Kc2 {[%clk 0:00:11]}  Rh2+ {[%clk 0:00:17]} 36. Kd3 {[%clk 0:00:11]}  Rg2 {[%clk 0:00:16]} 37. g5 {[%clk 0:00:11]}  Ke6 {[%clk 0:00:15]} 38. Re3+ {[%clk 0:00:10]}  Kd7 {[%clk 0:00:15]} 39. Ke4 {[%clk 0:00:10]}  Bd2 {[%clk 0:00:13]} 40. Rd3+ {[%clk 0:00:10]}  Kc7 {[%clk 0:00:13]} 41. Kf5 {[%clk 0:00:10]}  Rf2+ {[%clk 0:00:13]} 42. Ke6 {[%clk 0:00:09]}  Rg2 {[%clk 0:00:12]} 43. Kf5 {[%clk 0:00:09]}  Kb7 {[%clk 0:00:12]} 44. g6 {[%clk 0:00:09]}  Rf2+ {[%clk 0:00:11]} 45. Ke6 {[%clk 0:00:09]}  Rg2 {[%clk 0:00:11]} 46. Kf7 {[%clk 0:00:07]}  Rf2 {[%clk 0:00:11]} 47. g7 {[%clk 0:00:07]}  Bg5 {[%clk 0:00:09]} 48. g8=Q {[%clk 0:00:07]}  Bxf6 {[%clk 0:00:09]} 49. Ke6 {[%clk 0:00:05]}  Bb2 {[%clk 0:00:08]} 50. Rd7+ {[%clk 0:00:05]}  Kb6 {[%clk 0:00:07]} 51. Qb8+ {[%clk 0:00:05]}  Kc5 {[%clk 0:00:07]} 52. Qd6+ {[%clk 0:00:05]}  Kb6 {[%clk 0:00:04]} 53. Qc7+ {[%clk 0:00:05]}  Kc5 {[%clk 0:00:04]} 54. Qxa5# {[%clk 0:00:05]} 1-0


[Site "https://www.chess.com"]

[Event "Titled Tuesday Blitz March 07 Early 2023"]
[White "Goltseva, Ekaterina"]
[Black "Rakhmatullaev, Almas"]
[WhiteFideId "24173770"]
[BlackFideId "14205793"]
[WhiteElo "2200"]
[BlackElo "2221"]
[Result "1-0"]
[Round "05"]
[TimeControl "180+2"]
[Date "2023.03.07"]
[WhiteClock "0:00:09"]
[BlackClock "0:00:03"]

1. c4 {[%clk 0:02:46]}  Nf6 {[%clk 0:02:59]} 2. Nc3 {[%clk 0:02:45]}  g6 {[%clk 0:02:59]} 3. e4 {[%clk 0:02:44]}  d6 {[%clk 0:02:59]} 4. d4 {[%clk 0:02:43]}  Bg7 {[%clk 0:03:00]} 5. Nge2 {[%clk 0:02:44]}  O-O {[%clk 0:02:56]} 6. Ng3 {[%clk 0:02:44]}  e5 {[%clk 0:02:55]} 7. d5 {[%clk 0:02:43]}  Ne8 {[%clk 0:02:55]} 8. Be2 {[%clk 0:02:42]}  Nd7 {[%clk 0:02:52]} 9. h4 {[%clk 0:02:39]}  f5 {[%clk 0:02:45]} 10. exf5 {[%clk 0:02:33]}  gxf5 {[%clk 0:02:44]} 11. Nh5 {[%clk 0:02:26]}  Ndf6 {[%clk 0:02:39]} 12. Nxg7 {[%clk 0:02:22]}  Nxg7 {[%clk 0:02:40]} 13. h5 {[%clk 0:02:12]}  f4 {[%clk 0:02:39]} 14. g4 {[%clk 0:01:32]}  fxg3 {[%clk 0:02:19]} 15. fxg3 {[%clk 0:01:33]}  Nf5 {[%clk 0:02:13]} 16. Bg5 {[%clk 0:01:22]}  h6 {[%clk 0:02:10]} 17. Bxf6 {[%clk 0:01:11]}  Qxf6 {[%clk 0:02:11]} 18. Ne4 {[%clk 0:01:10]}  Qg7 {[%clk 0:02:10]} 19. Qd3 {[%clk 0:00:59]}  Nd4 {[%clk 0:02:06]} 20. O-O-O {[%clk 0:00:50]}  Bf5 {[%clk 0:02:06]} 21. g4 {[%clk 0:00:42]}  Bxe4 {[%clk 0:02:05]} 22. Qxe4 {[%clk 0:00:41]}  Rf4 {[%clk 0:02:06]} 23. Qe3 {[%clk 0:00:37]}  Raf8 {[%clk 0:02:06]} 24. Rhg1 {[%clk 0:00:30]}  Qg5 {[%clk 0:02:05]} 25. Kb1 {[%clk 0:00:26]}  Rf2 {[%clk 0:01:51]} 26. Qxg5+ {[%clk 0:00:21]}  hxg5 {[%clk 0:01:52]} 27. Bd3 {[%clk 0:00:21]}  Nf3 {[%clk 0:01:46]} 28. Rh1 {[%clk 0:00:19]}  e4 {[%clk 0:01:38]} 29. Bxe4 {[%clk 0:00:14]}  Nd2+ {[%clk 0:01:38]} 30. Rxd2 {[%clk 0:00:14]}  Rxd2 {[%clk 0:01:39]} 31. Bf5 {[%clk 0:00:14]}  Re2 {[%clk 0:01:34]} 32. a3 {[%clk 0:00:13]}  a6 {[%clk 0:01:16]} 33. Ka2 {[%clk 0:00:11]}  Kh8 {[%clk 0:01:12]} 34. Kb3 {[%clk 0:00:09]}  Rfe8 {[%clk 0:01:11]} 35. Be6 {[%clk 0:00:07]}  Rf8 {[%clk 0:01:10]} 36. Bf5 {[%clk 0:00:07]}  b5 {[%clk 0:01:06]} 37. cxb5 {[%clk 0:00:05]}  Rb8 {[%clk 0:01:04]} 38. a4 {[%clk 0:00:04]}  axb5 {[%clk 0:00:59]} 39. a5 {[%clk 0:00:05]}  Ra8 {[%clk 0:01:00]} 40. Ra1 {[%clk 0:00:05]}  Kg7 {[%clk 0:00:46]} 41. a6 {[%clk 0:00:04]}  Ra7 {[%clk 0:00:46]} 42. Bc8 {[%clk 0:00:03]}  Re4 {[%clk 0:00:29]} 43. Rf1 {[%clk 0:00:03]}  Rf4 {[%clk 0:00:21]} 44. Re1 {[%clk 0:00:03]}  Kf8 {[%clk 0:00:20]} 45. Bb7 {[%clk 0:00:03]}  Rxg4 {[%clk 0:00:18]} 46. Re6 {[%clk 0:00:04]}  Rh4 {[%clk 0:00:17]} 47. Rg6 {[%clk 0:00:04]}  Rxh5 {[%clk 0:00:17]} 48. Rf6+ {[%clk 0:00:04]}  Kg7 {[%clk 0:00:17]} 49. Re6 {[%clk 0:00:05]}  Kf7 {[%clk 0:00:17]} 50. Re4 {[%clk 0:00:04]}  Rh4 {[%clk 0:00:17]} 51. Re3 {[%clk 0:00:04]}  g4 {[%clk 0:00:17]} 52. Kb4 {[%clk 0:00:04]}  g3+ {[%clk 0:00:16]} 53. Kxb5 {[%clk 0:00:05]}  Rg4 {[%clk 0:00:16]} 54. Re1 {[%clk 0:00:05]}  g2 {[%clk 0:00:16]} 55. Rg1 {[%clk 0:00:06]}  Ke7 {[%clk 0:00:15]} 56. Kc6 {[%clk 0:00:06]}  Kd8 {[%clk 0:00:15]} 57. Kb5 {[%clk 0:00:06]}  Rg5 {[%clk 0:00:14]} 58. Kc6 {[%clk 0:00:05]}  Rg3 {[%clk 0:00:12]} 59. Kb5 {[%clk 0:00:05]}  Kd7 {[%clk 0:00:12]} 60. b4 {[%clk 0:00:05]}  Rg4 {[%clk 0:00:10]} 61. Bc6+ {[%clk 0:00:06]}  Ke7 {[%clk 0:00:10]} 62. Bb7 {[%clk 0:00:07]}  Kf6 {[%clk 0:00:09]} 63. Kc6 {[%clk 0:00:07]}  Ke5 {[%clk 0:00:07]} 64. Kxc7 {[%clk 0:00:07]}  Kf4 {[%clk 0:00:04]} 65. b5 {[%clk 0:00:07]}  Kf3 {[%clk 0:00:04]} 66. b6 {[%clk 0:00:08]}  Rg7+ {[%clk 0:00:04]} 67. Kc6 {[%clk 0:00:06]}  Raxb7 {[%clk 0:00:02]} 68. axb7 {[%clk 0:00:07]}  Rg8 {[%clk 0:00:02]} 69. Kc7 {[%clk 0:00:07]}  Kf2 {[%clk 0:00:02]} 70. Rxg2+ {[%clk 0:00:07]}  Kxg2 {[%clk 0:00:02]} 71. b8=Q {[%clk 0:00:08]}  Rg7+ {[%clk 0:00:02]} 72. Kc6 {[%clk 0:00:08]}  Kf3 {[%clk 0:00:03]} 73. Qxd6 {[%clk 0:00:09]} 1-0


[Site "https://www.chess.com"]

[Event "Titled Tuesday Blitz March 07 Early 2023"]
[White "Petrosian, Karlen"]
[Black "Grunberg, Mihai-Lucian"]
[WhiteFideId "4176146"]
[BlackFideId "1204149"]
[WhiteElo "2345"]
[BlackElo "2363"]
[Result "1-0"]
[Round "05"]
[TimeControl "180+2"]
[Date "2023.03.07"]
[WhiteClock "0:00:21"]
[BlackClock "0:00:20"]

1. e4 {[%clk 0:02:58]}  Nf6 {[%clk 0:02:59]} 2. Nc3 {[%clk 0:02:58]}  d5 {[%clk 0:03:00]} 3. d3 {[%clk 0:02:57]}  dxe4 {[%clk 0:03:00]} 4. Nxe4 {[%clk 0:02:58]}  Nxe4 {[%clk 0:03:00]} 5. dxe4 {[%clk 0:02:59]}  Qxd1+ {[%clk 0:02:59]} 6. Kxd1 {[%clk 0:03:00]}  g6 {[%clk 0:02:57]} 7. Be3 {[%clk 0:02:59]}  Bg7 {[%clk 0:02:57]} 8. c3 {[%clk 0:03:00]}  O-O {[%clk 0:02:56]} 9. Nf3 {[%clk 0:02:56]}  f5 {[%clk 0:02:50]} 10. Bc4+ {[%clk 0:02:55]}  e6 {[%clk 0:02:42]} 11. Kc2 {[%clk 0:02:19]}  Nc6 {[%clk 0:02:41]} 12. Bc5 {[%clk 0:02:10]}  Re8 {[%clk 0:02:40]} 13. exf5 {[%clk 0:02:10]}  gxf5 {[%clk 0:02:40]} 14. Rhe1 {[%clk 0:02:06]}  b6 {[%clk 0:02:35]} 15. Be3 {[%clk 0:02:04]}  Bb7 {[%clk 0:02:31]} 16. Bf4 {[%clk 0:02:01]}  Nd8 {[%clk 0:02:14]} 17. Rad1 {[%clk 0:01:35]}  Be4+ {[%clk 0:02:08]} 18. Kc1 {[%clk 0:01:35]}  c5 {[%clk 0:02:03]} 19. Ng5 {[%clk 0:01:22]}  Bxg2 {[%clk 0:01:56]} 20. Rg1 {[%clk 0:00:50]}  Bd5 {[%clk 0:01:51]} 21. Rxd5 {[%clk 0:00:47]}  exd5 {[%clk 0:01:51]} 22. Bxd5+ {[%clk 0:00:48]}  Nf7 {[%clk 0:01:47]} 23. Bxf7+ {[%clk 0:00:47]}  Kf8 {[%clk 0:01:47]} 24. Bxe8 {[%clk 0:00:41]}  Rxe8 {[%clk 0:01:48]} 25. Nf3 {[%clk 0:00:38]}  Bf6 {[%clk 0:01:46]} 26. Re1 {[%clk 0:00:35]}  Rd8 {[%clk 0:01:46]} 27. Bg5 {[%clk 0:00:35]}  Bxg5+ {[%clk 0:01:45]} 28. Nxg5 {[%clk 0:00:36]}  Rd6 {[%clk 0:01:45]} 29. h4 {[%clk 0:00:28]}  h6 {[%clk 0:01:44]} 30. Nf3 {[%clk 0:00:28]}  Kf7 {[%clk 0:01:44]} 31. Rd1 {[%clk 0:00:28]}  Re6 {[%clk 0:01:44]} 32. Kd2 {[%clk 0:00:28]}  Kf6 {[%clk 0:01:42]} 33. Re1 {[%clk 0:00:28]}  Rd6+ {[%clk 0:01:43]} 34. Kc2 {[%clk 0:00:29]}  f4 {[%clk 0:01:41]} 35. Re5 {[%clk 0:00:26]}  Rd7 {[%clk 0:01:37]} 36. a4 {[%clk 0:00:25]}  Rg7 {[%clk 0:01:36]} 37. Kd2 {[%clk 0:00:24]}  Rg2 {[%clk 0:01:29]} 38. Ke2 {[%clk 0:00:24]}  Rg4 {[%clk 0:01:29]} 39. Re8 {[%clk 0:00:22]}  Rg7 {[%clk 0:01:28]} 40. Rf8+ {[%clk 0:00:21]}  Ke6 {[%clk 0:01:25]} 41. Rxf4 {[%clk 0:00:22]}  Kd5 {[%clk 0:01:26]} 42. c4+ {[%clk 0:00:22]}  Kc6 {[%clk 0:01:25]} 43. b3 {[%clk 0:00:21]}  Kb7 {[%clk 0:01:25]} 44. Re4 {[%clk 0:00:21]}  Ka6 {[%clk 0:01:26]} 45. Ne1 {[%clk 0:00:19]}  Ka5 {[%clk 0:01:26]} 46. Nd3 {[%clk 0:00:19]}  h5 {[%clk 0:01:23]} 47. Ke3 {[%clk 0:00:19]}  Rg1 {[%clk 0:01:22]} 48. Kd2 {[%clk 0:00:19]}  a6 {[%clk 0:01:21]} 49. Re5 {[%clk 0:00:19]}  b5 {[%clk 0:00:21]} 50. axb5 {[%clk 0:00:20]}  axb5 {[%clk 0:00:21]} 51. Rxc5 {[%clk 0:00:20]}  Ka6 {[%clk 0:00:20]} 52. Rxb5 {[%clk 0:00:20]}  Rg4 {[%clk 0:00:20]} 53. Rxh5 {[%clk 0:00:20]}  Rf4 {[%clk 0:00:21]} 54. Kc3 {[%clk 0:00:20]}  Rf3 {[%clk 0:00:21]} 55. Rd5 {[%clk 0:00:20]}  Rh3 {[%clk 0:00:18]} 56. h5 {[%clk 0:00:20]}  Kb7 {[%clk 0:00:18]} 57. b4 {[%clk 0:00:21]}  Kc7 {[%clk 0:00:18]} 58. b5 {[%clk 0:00:22]}  Kb7 {[%clk 0:00:19]} 59. Kb4 {[%clk 0:00:22]}  Kb6 {[%clk 0:00:20]} 60. c5+ {[%clk 0:00:22]}  Kb7 {[%clk 0:00:20]} 61. b6 {[%clk 0:00:22]}  Rh4+ {[%clk 0:00:21]} 62. Kb5 {[%clk 0:00:22]}  Kb8 {[%clk 0:00:21]} 63. c6 {[%clk 0:00:23]}  Kc8 {[%clk 0:00:21]} 64. Rf5 {[%clk 0:00:21]}  Rd4 {[%clk 0:00:20]} 65. Rf8+ {[%clk 0:00:21]} 1-0


[Site "https://www.chess.com"]

[Event "Titled Tuesday Blitz March 07 Early 2023"]
[White "Hernandez Sanchez, Elvis De La Caridad"]
[Black "Preotu, Razvan"]
[WhiteFideId "6400353"]
[BlackFideId "2613280"]
[WhiteElo "2465"]
[BlackElo "2407"]
[Result "0-1"]
[Round "05"]
[TimeControl "180+2"]
[Date "2023.03.07"]
[WhiteClock "0:00:07"]
[BlackClock "0:00:08"]

1. d4 {[%clk 0:03:00]}  Nf6 {[%clk 0:02:54]} 2. Nf3 {[%clk 0:02:59]}  g6 {[%clk 0:02:54]} 3. c4 {[%clk 0:02:58]}  Bg7 {[%clk 0:02:55]} 4. Nc3 {[%clk 0:02:58]}  d5 {[%clk 0:02:55]} 5. cxd5 {[%clk 0:02:56]}  Nxd5 {[%clk 0:02:56]} 6. e4 {[%clk 0:02:56]}  Nxc3 {[%clk 0:02:56]} 7. bxc3 {[%clk 0:02:57]}  c5 {[%clk 0:02:57]} 8. Be3 {[%clk 0:02:53]}  Bg4 {[%clk 0:02:55]} 9. Rc1 {[%clk 0:02:42]}  O-O {[%clk 0:02:55]} 10. Be2 {[%clk 0:02:37]}  Qa5 {[%clk 0:02:52]} 11. Qd2 {[%clk 0:02:33]}  Nd7 {[%clk 0:02:47]} 12. h3 {[%clk 0:02:16]}  Bxf3 {[%clk 0:02:46]} 13. Bxf3 {[%clk 0:02:17]}  Nb6 {[%clk 0:02:23]} 14. Be2 {[%clk 0:02:03]}  Rfd8 {[%clk 0:01:18]} 15. d5 {[%clk 0:01:46]}  Na4 {[%clk 0:01:18]} 16. O-O {[%clk 0:01:31]}  Nxc3 {[%clk 0:01:12]} 17. Bf3 {[%clk 0:01:20]}  b6 {[%clk 0:01:04]} 18. Qe1 {[%clk 0:01:07]}  Qa3 {[%clk 0:00:55]} 19. Bg5 {[%clk 0:01:07]}  Nxa2 {[%clk 0:00:44]} 20. Ra1 {[%clk 0:00:57]}  Qb2 {[%clk 0:00:25]} 21. Bxe7 {[%clk 0:00:40]}  Re8 {[%clk 0:00:18]} 22. d6 {[%clk 0:00:36]}  Qxa1 {[%clk 0:00:15]} 23. Qxa1 {[%clk 0:00:37]}  Bxa1 {[%clk 0:00:15]} 24. Rxa1 {[%clk 0:00:37]}  Nb4 {[%clk 0:00:16]} 25. e5 {[%clk 0:00:36]}  Rab8 {[%clk 0:00:10]} 26. Rxa7 {[%clk 0:00:36]}  c4 {[%clk 0:00:10]} 27. Rc7 {[%clk 0:00:35]}  b5 {[%clk 0:00:11]} 28. Bf6 {[%clk 0:00:29]}  Na6 {[%clk 0:00:10]} 29. Rc6 {[%clk 0:00:27]}  Nb4 {[%clk 0:00:10]} 30. Rc7 {[%clk 0:00:26]}  Na6 {[%clk 0:00:10]} 31. Ra7 {[%clk 0:00:21]}  Nc5 {[%clk 0:00:09]} 32. d7 {[%clk 0:00:21]}  Red8 {[%clk 0:00:09]} 33. Bxd8 {[%clk 0:00:20]}  Rxd8 {[%clk 0:00:10]} 34. Bc6 {[%clk 0:00:20]}  c3 {[%clk 0:00:11]} 35. Ra1 {[%clk 0:00:07]}  Nb3 {[%clk 0:00:08]} 0-1


[Site "https://www.chess.com"]

[Event "Titled Tuesday Blitz March 07 Early 2023"]
[White "Kozak, Antoni"]
[Black "Castellano, Christopher"]
[WhiteFideId "21832030"]
[BlackFideId "5203651"]
[WhiteElo "2470"]
[BlackElo "2171"]
[Result "1-0"]
[Round "05"]
[TimeControl "180+2"]
[Date "2023.03.07"]
[WhiteClock "0:00:59"]
[BlackClock "0:00:19"]

1. Nf3 {[%clk 0:03:00]}  d5 {[%clk 0:02:14]} 2. g3 {[%clk 0:03:01]}  Nf6 {[%clk 0:02:14]} 3. Bg2 {[%clk 0:03:01]}  Bf5 {[%clk 0:02:14]} 4. O-O {[%clk 0:03:02]}  c6 {[%clk 0:02:15]} 5. d3 {[%clk 0:03:01]}  h6 {[%clk 0:02:15]} 6. c4 {[%clk 0:03:02]}  e6 {[%clk 0:02:15]} 7. Nc3 {[%clk 0:03:01]}  Nbd7 {[%clk 0:02:15]} 8. Re1 {[%clk 0:02:53]}  Bb4 {[%clk 0:02:15]} 9. Bd2 {[%clk 0:02:51]}  O-O {[%clk 0:02:14]} 10. Rc1 {[%clk 0:02:32]}  Bh7 {[%clk 0:02:12]} 11. a3 {[%clk 0:02:30]}  Ba5 {[%clk 0:02:12]} 12. b4 {[%clk 0:02:29]}  Bb6 {[%clk 0:02:12]} 13. e4 {[%clk 0:02:27]}  Ng4 {[%clk 0:02:08]} 14. c5 {[%clk 0:02:26]}  Bc7 {[%clk 0:02:00]} 15. Qe2 {[%clk 0:02:10]}  a5 {[%clk 0:01:57]} 16. h3 {[%clk 0:02:04]}  Nge5 {[%clk 0:01:55]} 17. Nh2 {[%clk 0:02:00]}  axb4 {[%clk 0:01:50]} 18. axb4 {[%clk 0:02:01]}  d4 {[%clk 0:01:40]} 19. Nd1 {[%clk 0:01:59]}  Ra3 {[%clk 0:01:39]} 20. Nb2 {[%clk 0:01:57]}  Rb3 {[%clk 0:01:37]} 21. Rc2 {[%clk 0:01:54]}  f5 {[%clk 0:01:34]} 22. f4 {[%clk 0:01:52]}  fxe4 {[%clk 0:01:34]} 23. Bxe4 {[%clk 0:01:50]}  Bxe4 {[%clk 0:01:29]} 24. Qxe4 {[%clk 0:01:49]}  Nf6 {[%clk 0:01:28]} 25. Qe2 {[%clk 0:01:48]}  Nf7 {[%clk 0:01:19]} 26. Qxe6 {[%clk 0:01:45]}  Re8 {[%clk 0:01:18]} 27. Qxb3 {[%clk 0:01:45]}  Rxe1+ {[%clk 0:01:19]} 28. Bxe1 {[%clk 0:01:46]}  Nd5 {[%clk 0:01:16]} 29. Bf2 {[%clk 0:01:44]}  Qe7 {[%clk 0:01:13]} 30. Nf3 {[%clk 0:01:32]}  g5 {[%clk 0:01:12]} 31. fxg5 {[%clk 0:01:30]}  hxg5 {[%clk 0:01:12]} 32. Nxd4 {[%clk 0:01:29]}  Qd7 {[%clk 0:01:03]} 33. Kg2 {[%clk 0:01:26]}  g4 {[%clk 0:01:01]} 34. h4 {[%clk 0:01:27]}  Kh7 {[%clk 0:00:59]} 35. Re2 {[%clk 0:01:27]}  Ne5 {[%clk 0:00:58]} 36. Re4 {[%clk 0:01:23]}  Qf7 {[%clk 0:00:51]} 37. Qc2 {[%clk 0:01:19]}  Nf6 {[%clk 0:00:48]} 38. Rf4 {[%clk 0:01:16]}  Qd5+ {[%clk 0:00:47]} 39. Kh2 {[%clk 0:01:13]}  Nh5 {[%clk 0:00:31]} 40. Rf5 {[%clk 0:01:10]}  Nf3+ {[%clk 0:00:30]} 41. Nxf3 {[%clk 0:01:02]}  Qxf5 {[%clk 0:00:29]} 42. Ng5+ {[%clk 0:01:02]}  Kg8 {[%clk 0:00:25]} 43. Qe2 {[%clk 0:01:03]}  Nf4 {[%clk 0:00:19]} 44. Qe8+ {[%clk 0:01:01]}  Kg7 {[%clk 0:00:19]} 45. Bd4+ {[%clk 0:00:59]} 1-0


[Site "https://www.chess.com"]

[Event "Titled Tuesday Blitz March 07 Early 2023"]
[White "Tan, Jun Ying"]
[Black "Bowden, Karl"]
[WhiteFideId "5710413"]
[BlackFideId "400548"]
[WhiteElo "2089"]
[BlackElo "2449"]
[Result "1-0"]
[Round "05"]
[TimeControl "180+2"]
[Date "2023.03.07"]
[WhiteClock "0:01:11"]
[BlackClock "0:00:01"]

1. d4 {[%clk 0:02:57]}  Nf6 {[%clk 0:02:59]} 2. c4 {[%clk 0:02:57]}  c5 {[%clk 0:02:59]} 3. d5 {[%clk 0:02:57]}  Ne4 {[%clk 0:03:00]} 4. Qc2 {[%clk 0:02:52]}  Qa5+ {[%clk 0:02:59]} 5. Nd2 {[%clk 0:02:48]}  Nd6 {[%clk 0:02:59]} 6. b3 {[%clk 0:02:43]}  Na6 {[%clk 0:02:49]} 7. Bb2 {[%clk 0:02:38]}  b5 {[%clk 0:02:46]} 8. e4 {[%clk 0:02:32]}  bxc4 {[%clk 0:02:41]} 9. bxc4 {[%clk 0:02:26]}  Rb8 {[%clk 0:01:46]} 10. a3 {[%clk 0:02:17]}  Nxe4 {[%clk 0:01:22]} 11. Nf3 {[%clk 0:01:56]}  d6 {[%clk 0:01:12]} 12. Bd3 {[%clk 0:01:51]}  Nxd2 {[%clk 0:00:53]} 13. Nxd2 {[%clk 0:01:52]}  Bd7 {[%clk 0:00:53]} 14. O-O {[%clk 0:01:49]}  Ba4 {[%clk 0:00:51]} 15. Qc1 {[%clk 0:01:48]}  h5 {[%clk 0:00:29]} 16. Re1 {[%clk 0:01:43]}  h4 {[%clk 0:00:25]} 17. Ne4 {[%clk 0:01:40]}  Qc7 {[%clk 0:00:20]} 18. h3 {[%clk 0:01:32]}  Rh5 {[%clk 0:00:17]} 19. Bc3 {[%clk 0:01:24]}  Rb7 {[%clk 0:00:15]} 20. Qf4 {[%clk 0:01:24]}  Rb8 {[%clk 0:00:04]} 21. Nxd6+ {[%clk 0:01:18]}  Kd7 {[%clk 0:00:04]} 22. Qg4+ {[%clk 0:01:15]}  e6 {[%clk 0:00:01]} 23. dxe6+ {[%clk 0:01:11]} 1-0


[Site "https://www.chess.com"]

[Event "Titled Tuesday Blitz March 07 Early 2023"]
[White "Mikhalsky, Vladimir"]
[Black "Perez Gormaz, Matias"]
[WhiteFideId "14144352"]
[BlackFideId "3406342"]
[WhiteElo "2272"]
[BlackElo "2362"]
[Result "0-1"]
[Round "05"]
[TimeControl "180+2"]
[Date "2023.03.07"]
[WhiteClock "0:00:47"]
[BlackClock "0:01:23"]

1. c4 {[%clk 0:02:53]}  e5 {[%clk 0:02:59]} 2. Nc3 {[%clk 0:02:53]}  Nf6 {[%clk 0:02:58]} 3. g3 {[%clk 0:02:50]}  c6 {[%clk 0:02:50]} 4. d4 {[%clk 0:02:49]}  e4 {[%clk 0:02:49]} 5. d5 {[%clk 0:02:47]}  Bb4 {[%clk 0:02:48]} 6. Bg2 {[%clk 0:02:40]}  Bxc3+ {[%clk 0:02:46]} 7. bxc3 {[%clk 0:02:39]}  O-O {[%clk 0:02:42]} 8. d6 {[%clk 0:02:26]}  Qa5 {[%clk 0:02:36]} 9. Qb3 {[%clk 0:02:01]}  Na6 {[%clk 0:02:34]} 10. Ba3 {[%clk 0:02:00]}  Re8 {[%clk 0:02:20]} 11. Nh3 {[%clk 0:01:58]}  b6 {[%clk 0:02:12]} 12. O-O {[%clk 0:01:54]}  Bb7 {[%clk 0:02:12]} 13. Bb4 {[%clk 0:01:37]}  Qe5 {[%clk 0:02:07]} 14. Rad1 {[%clk 0:01:25]}  h6 {[%clk 0:01:59]} 15. Kh1 {[%clk 0:01:16]}  Rab8 {[%clk 0:01:44]} 16. f4 {[%clk 0:01:15]}  Qh5 {[%clk 0:01:36]} 17. Qc2 {[%clk 0:00:59]}  Ng4 {[%clk 0:01:34]} 18. Qc1 {[%clk 0:00:54]}  c5 {[%clk 0:01:26]} 19. Ba3 {[%clk 0:00:54]}  e3 {[%clk 0:01:25]} 20. Bxb7 {[%clk 0:00:47]}  Qxh3 {[%clk 0:01:23]} 0-1


[Site "https://www.chess.com"]